bitfinex/quotes_BTCUSD_20251116
["timestamp","ask_amount","ask_price","bid_price","bid_amount"]
[1763319348997,0.02395433,94361.0,94360.0,0.22334061]
[1763319349360,0.02395433,94361.0,94360.0,0.22234061]
[1763319349948,0.00442607,94361.0,94360.0,0.22234061]
[1763319350262,0.00442607,94361.0,94360.0,0.20021874]
[1763319350582,0.04060946,94361.0,94360.0,0.20321874]
[1763319350799,0.04060946,94361.0,94360.0,0.20221874]
[1763319351000,0.04060946,94361.0,94360.0,0.20021874]
[1763319351200,0.04060946,94361.0,94360.0,0.20121874]
[1763319351414,0.04060946,94361.0,94360.0,0.20321874]
[1763319351609,0.04060946,94361.0,94360.0,0.20221874]
[1763319351914,0.05060946,94361.0,94360.0,0.10621874]
[1763319352536,0.05060946,94361.0,94360.0,0.10721874]
[1763319352782,0.05060946,94361.0,94360.0,0.04541874]
[1763319352977,0.05060946,94361.0,94360.0,0.002]
[1763319353975,0.04060946,94361.0,94352.0,0.04342924]
[1763319354180,0.01,94353.0,94352.0,1.05e-05]
[1763319354385,0.02954104,94353.0,94352.0,1.05e-05]
[1763319355153,0.03931267,94353.0,94352.0,0.0010105]
[1763319355354,0.20931267,94353.0,94352.0,0.0010105]
[1763319355537,0.20931267,94353.0,94352.0,0.0020105]
[1763319355737,0.20931267,94353.0,94352.0,0.0010105]
[1763319355933,0.27108267,94353.0,94352.0,0.0010105]
[1763319356316,0.12431144,94353.0,94352.0,1.05e-05]
[1763319356731,0.12431144,94353.0,94352.0,0.0010105]
[1763319356939,0.12431144,94353.0,94352.0,0.0020105]
[1763319357173,0.12431144,94353.0,94352.0,1.05e-05]
[1763319357531,0.12431144,94353.0,94352.0,0.0020105]
[1763319358270,0.03931144,94353.0,94352.0,0.0020105]
[1763319358395,0.05595766,94353.0,94352.0,0.0020105]
[1763319358794,0.05595766,94353.0,94352.0,0.0010105]
[1763319359553,0.05595766,94353.0,94352.0,1.05e-05]
[1763319359699,0.05595766,94353.0,94352.0,0.0010105]
[1763319360187,0.11772766,94353.0,94352.0,0.0020105]
[1763319360396,0.21039766,94353.0,94352.0,0.0020105]
[1763319360595,0.21675534,94353.0,94352.0,0.0020105]
[1763319361131,0.21675534,94353.0,94352.0,0.0010105]
[1763319361362,0.21675534,94353.0,94352.0,1.05e-05]
[1763319361539,2.21675534,94353.0,94352.0,1.05e-05]
[1763319364183,2.23340577,94353.0,94352.0,1.05e-05]
[1763319364767,2.30813453,94353.0,94352.0,1.05e-05]
[1763319364970,2.73207453,94353.0,94352.0,1.05e-05]
[1763319365173,2.65734577,94353.0,94352.0,1.05e-05]
[1763319365369,2.82734577,94353.0,94352.0,1.05e-05]
[1763319365995,2.90207453,94353.0,94352.0,1.05e-05]
[1763319366172,2.82734577,94353.0,94352.0,1.05e-05]
[1763319366533,2.82834577,94353.0,94352.0,1.05e-05]
[1763319366743,2.74334577,94353.0,94352.0,1.05e-05]
[1763319366943,2.86931571,94353.0,94352.0,1.05e-05]
[1763319367172,3.11661571,94353.0,94352.0,1.05e-05]
[1763319367350,3.11761571,94353.0,94352.0,1.05e-05]
[1763319367527,0.2,94330.0,94286.0,0.095]
[1763319367733,0.01,94297.0,94290.0,0.012718]
[1763319367948,0.02931144,94329.0,94289.0,0.03262957]
[1763319367949,0.01,94290.0,94289.0,0.03262957]
[1763319368331,0.01,94290.0,94289.0,0.00044957]
[1763319368914,0.02944224,94290.0,94289.0,0.00044957]
[1763319369545,0.02944224,94290.0,94289.0,0.00144957]
[1763319369982,0.01944224,94290.0,94289.0,0.06224957]
[1763319370147,0.01,94290.0,94289.0,0.16447453]
[1763319370510,0.01,94290.0,94289.0,0.06847453]
[1763319370711,0.01,94290.0,94289.0,0.00044957]
[1763319370854,0.01,94290.0,94289.0,0.00244957]
[1763319371049,0.01,94290.0,94289.0,0.00144957]
[1763319371275,0.01,94290.0,94289.0,0.00244957]
[1763319371276,0.18382162,94290.0,94289.0,0.00244957]
[1763319371451,0.09115162,94290.0,94289.0,0.00244957]
[1763319371656,0.09115162,94290.0,94274.0,0.01068957]
[1763319371657,0.18382162,94290.0,94274.0,0.01068957]
[1763319371854,0.01,94275.0,94274.0,0.01068957]
[1763319372255,0.01,94275.0,94274.0,0.07248957]
[1763319372885,0.01,94275.0,94274.0,0.19820727]
[1763319373086,0.42398489,94290.0,94275.0,0.04341874]
[1763319373331,0.01,94283.0,94277.0,0.04341874]
[1763319373485,0.01,94278.0,94277.0,0.04341874]
[1763319374525,0.02665758,94278.0,94277.0,0.04541874]
[1763319374673,0.01,94278.0,94277.0,0.04541874]
[1763319375096,0.01,94278.0,94277.0,0.10721874]
[1763319375273,0.18008,94278.0,94277.0,0.10721874]
[1763319375703,0.18008,94278.0,94277.0,0.10621874]
[1763319376190,0.18008,94278.0,94277.0,0.10721874]
[1763319376421,0.09504,94278.0,94277.0,0.10521874]
[1763319376625,0.01,94278.0,94277.0,0.10621874]
[1763319376848,0.01,94278.0,94277.0,0.002]
[1763319377051,0.01,94278.0,94276.0,0.02174]
[1763319377235,0.01,94277.0,94276.0,0.02174]
[1763319377430,0.02930066,94277.0,94276.0,0.02174]
[1763319377841,0.0459584,94277.0,94276.0,0.02174]
[1763319378073,0.0459584,94277.0,94276.0,0.08324]
[1763319378291,0.00112428,94270.0,94250.0,0.0004]
[1763319378511,0.01,94251.0,94250.0,0.0004]
[1763319379604,0.01,94251.0,94250.0,0.0619]
[1763319379842,0.01004486,94251.0,94250.0,0.0639]
[1763319380061,0.15753486,94251.0,94250.0,0.0014]
[1763319380269,0.15753486,94251.0,94250.0,0.0004]
[1763319380270,0.09158475,94251.0,94250.0,0.0004]
[1763319380489,0.18683475,94251.0,94250.0,0.0014]
[1763319380697,0.02934475,94251.0,94250.0,0.0004]
[1763319380932,0.02934475,94251.0,94250.0,0.0629]
[1763319381156,0.02934475,94251.0,94250.0,0.0639]
[1763319382197,0.02934475,94251.0,94250.0,0.0619]
[1763319382369,0.02934475,94251.0,94250.0,0.0629]
[1763319382882,0.02934475,94251.0,94250.0,0.0014]
[1763319382883,2.18683475,94251.0,94250.0,0.0014]
[1763319383121,0.00112428,94210.0,94199.0,0.03218]
[1763319383339,0.01,94207.0,94199.0,0.02821013]
[1763319383557,0.01929989,94206.0,94200.0,0.04341874]
[1763319383739,0.01,94207.0,94200.0,0.00716289]
[1763319383740,0.01929989,94205.0,94200.0,0.00716289]
[1763319383995,0.01929989,94204.0,94200.0,0.00716289]
[1763319384216,0.01929989,94203.0,94201.0,0.07248]
[1763319384433,0.2,94250.0,94202.0,0.04341874]
[1763319384434,4.482e-05,94204.0,94202.0,0.04341874]
[1763319384851,4.482e-05,94204.0,94203.0,0.17739874]
[1763319385060,4.482e-05,94204.0,94203.0,0.29829708]
[1763319385462,0.08512482,94204.0,94203.0,0.19795963]
[1763319385796,0.08512482,94204.0,94203.0,0.13398]
[1763319386003,0.08512482,94204.0,94203.0,0.0615]
[1763319386350,4.482e-05,94204.0,94203.0,0.0655]
[1763319386779,4.482e-05,94204.0,94203.0,0.10691874]
[1763319386780,0.01926658,94204.0,94203.0,0.10691874]
[1763319386981,0.01926658,94204.0,94203.0,0.10491874]
[1763319387184,0.01926658,94204.0,94203.0,0.0635]
[1763319387359,0.01926658,94204.0,94203.0,0.0645]
[1763319387948,0.01926658,94204.0,94203.0,0.10791874]
[1763319388125,0.03593451,94204.0,94203.0,0.10791874]
[1763319388321,0.01926658,94204.0,94203.0,0.17839874]
[1763319388561,0.01926658,94204.0,94203.0,0.17939874]
[1763319388763,0.01926658,94204.0,94203.0,0.18039874]
[1763319388967,0.02926658,94204.0,94203.0,0.0645]
[1763319389230,0.01926658,94204.0,94203.0,0.18667375]
[1763319389493,0.01926658,94204.0,94203.0,0.18039874]
[1763319389817,4.482e-05,94204.0,94203.0,0.18039874]
[1763319390229,0.01,94234.0,94204.0,0.04341874]
[1763319390375,0.01922032,94233.0,94232.0,0.04341874]
[1763319390788,0.01922032,94233.0,94232.0,0.17739874]
[1763319390994,0.02922032,94233.0,94232.0,0.04341874]
[1763319391438,0.04588567,94233.0,94232.0,0.04341874]
[1763319392468,0.04588567,94233.0,94232.0,0.04441874]
[1763319393040,0.04588567,94233.0,94232.0,0.002]
[1763319393491,0.10812567,94233.0,94232.0,0.002]
[1763319393693,0.04588567,94233.0,94232.0,0.08762]
[1763319393899,0.04588567,94233.0,94232.0,0.20351874]
[1763319393900,0.03588567,94233.0,94232.0,0.20351874]
[1763319394450,0.03588567,94233.0,94232.0,0.20251874]
[1763319394652,0.03588567,94233.0,94232.0,0.20151874]
[1763319395031,0.03588567,94233.0,94232.0,0.13003874]
[1763319395268,0.20612567,94233.0,94232.0,0.13103874]
[1763319395554,0.20612567,94233.0,94232.0,0.13003874]
[1763319395770,0.20612567,94233.0,94232.0,0.21562261]
[1763319395977,0.20612567,94233.0,94232.0,0.20351874]
[1763319395978,0.18946032,94233.0,94232.0,0.20351874]
[1763319396558,0.18946032,94233.0,94232.0,0.20251874]
[1763319397105,0.10434032,94233.0,94232.0,0.20251874]
[1763319397506,0.10434032,94233.0,94232.0,0.20151874]
[1763319397720,0.10434032,94233.0,94232.0,0.20351874]
[1763319397921,0.08512,94233.0,94232.0,0.20351874]
[1763319398236,0.08512,94233.0,94232.0,0.20251874]
[1763319398864,0.08512,94233.0,94232.0,0.20351874]
[1763319399189,0.10441436,94233.0,94232.0,0.20351874]
[1763319399590,0.08512,94233.0,94232.0,0.20351874]
[1763319399747,0.10441539,94233.0,94232.0,0.20351874]
[1763319402399,0.01532405,94233.0,94232.0,0.20351874]
[1763319402605,0.01532405,94233.0,94232.0,0.22387061]
[1763319403167,0.01666395,94247.0,94233.0,0.04341874]
[1763319403319,0.01666395,94247.0,94246.0,0.12915874]
[1763319403700,0.01666395,94247.0,94246.0,0.20163874]
[1763319404305,0.01666395,94247.0,94246.0,0.20177364]
[1763319404509,0.02633036,94247.0,94246.0,0.20177364]
[1763319404714,0.01666395,94247.0,94246.0,0.20277364]
[1763319404938,0.02633031,94247.0,94246.0,0.0011349]
[1763319405135,0.03633031,94247.0,94246.0,0.0011349]
[1763319405347,0.20657031,94247.0,94246.0,0.0011349]
[1763319405525,0.20657031,94247.0,94246.0,0.0021349]
[1763319405930,0.27787031,94247.0,94246.0,0.0021349]
[1763319406108,0.19275031,94247.0,94246.0,0.0001349]
[1763319406308,0.19275031,94247.0,94246.0,0.0011349]
[1763319406309,0.03633031,94247.0,94246.0,0.0011349]
[1763319407298,0.09839031,94247.0,94246.0,0.0011349]
[1763319407489,0.19275031,94247.0,94246.0,0.0001349]
[1763319407889,0.19275031,94247.0,94246.0,0.0011349]
[1763319408096,0.03633031,94247.0,94246.0,0.0011349]
[1763319408252,0.09839031,94247.0,94246.0,0.0001349]
[1763319408460,0.19275031,94247.0,94246.0,0.0001349]
[1763319408645,0.09839031,94247.0,94246.0,0.0001349]
[1763319409072,0.19275031,94247.0,94246.0,0.0001349]
[1763319409279,0.19275681,94247.0,94246.0,0.0001349]
[1763319409497,0.01,94233.0,94232.0,0.02412]
[1763319409694,0.01,94233.0,94232.0,0.02418208]
[1763319409695,0.01967286,94233.0,94232.0,0.02418208]
[1763319409897,0.00967286,94233.0,94232.0,0.16163208]
[1763319410140,0.00967286,94233.0,94232.0,0.08915208]
[1763319410309,0.01967286,94233.0,94232.0,0.08915208]
[1763319410731,0.01967286,94233.0,94232.0,0.02418208]
[1763319410917,0.01967286,94233.0,94232.0,0.02518208]
[1763319411612,0.01967286,94233.0,94232.0,0.09015208]
[1763319411811,0.01967286,94233.0,94232.0,0.17164729]
[1763319412039,0.01967286,94233.0,94232.0,0.09015208]
[1763319412386,0.09436,94254.0,94232.0,0.09015208]
[1763319412387,0.00112428,94250.0,94233.0,0.04341874]
[1763319412616,0.00966598,94249.0,94235.0,0.04341874]
[1763319412823,0.01,94239.0,94235.0,0.04341874]
[1763319413029,0.00966598,94238.0,94235.0,0.04341874]
[1763319413267,0.00966598,94238.0,94232.0,0.02518208]
[1763319413268,0.00966598,94238.0,94237.0,0.04341874]
[1763319413618,0.00966598,94238.0,94237.0,0.10838874]
[1763319414341,0.02898588,94238.0,94237.0,0.10838874]
[1763319414470,0.03898588,94238.0,94237.0,0.10838874]
[1763319414672,0.02898588,94238.0,94237.0,0.10938874]
[1763319415189,0.03898588,94238.0,94237.0,0.001]
[1763319415414,0.20922588,94238.0,94237.0,0.001]
[1763319415620,0.03898588,94238.0,94237.0,0.001]
[1763319416550,0.02898588,94238.0,94232.0,0.02418208]
[1763319416753,0.01,94233.0,94232.0,0.02418208]
[1763319416951,0.03898588,94233.0,94232.0,0.02418208]
[1763319417358,0.03898588,94233.0,94232.0,0.06503208]
[1763319417563,0.03898588,94233.0,94232.0,0.13751208]
[1763319417771,0.03898588,94233.0,94232.0,0.06503208]
[1763319418575,0.03898588,94233.0,94232.0,0.06603208]
[1763319419017,0.03898588,94233.0,94232.0,0.00106208]
[1763319419944,0.03898588,94233.0,94232.0,6.208e-05]
[1763319420153,0.03898588,94233.0,94232.0,0.00106208]
[1763319420593,0.19540588,94233.0,94232.0,0.00106208]
[1763319421423,0.10104588,94233.0,94232.0,0.00106208]
[1763319421606,0.03898588,94233.0,94232.0,0.00106208]
[1763319421810,0.10104588,94233.0,94232.0,0.00106208]
[1763319422012,0.03998588,94233.0,94232.0,0.00106208]
[1763319422598,0.20219338,94233.0,94232.0,6.208e-05]
[1763319422800,0.19640588,94233.0,94232.0,6.208e-05]
[1763319423182,0.19640588,94233.0,94190.0,0.0004]
[1763319423183,0.00112428,94210.0,94190.0,0.0004]
[1763319423393,0.2,94230.0,94190.0,0.0004]
[1763319423394,0.01,94201.0,94200.0,0.00048949]
[1763319423598,0.03898588,94201.0,94200.0,0.00048949]
[1763319423803,0.19540588,94201.0,94200.0,0.00048949]
[1763319424013,0.20119338,94201.0,94200.0,0.00048949]
[1763319424220,0.19540588,94201.0,94200.0,0.00048949]
[1763319424421,0.1953487,94201.0,94200.0,0.00048949]
[1763319424604,0.2012346,94201.0,94200.0,0.00248949]
[1763319424941,0.1009887,94201.0,94200.0,0.00148949]
[1763319425272,0.2712287,94201.0,94200.0,0.00148949]
[1763319425440,0.2091687,94201.0,94200.0,0.00148949]
[1763319425641,0.19950272,94201.0,94200.0,0.00048949]
[1763319426072,0.20050272,94201.0,94200.0,0.00048949]
[1763319426654,0.19950272,94201.0,94200.0,0.00048949]
[1763319426772,0.21717292,94201.0,94200.0,0.00048949]
[1763319426971,0.21617292,94201.0,94200.0,0.00048949]
[1763319428744,0.03593292,94201.0,94200.0,0.18141823]
[1763319428968,0.0166702,94201.0,94200.0,0.19956005]
[1763319429121,0.01,94224.0,94201.0,0.04341874]
[1763319429323,0.01666677,94218.0,94201.0,0.11595874]
[1763319429492,0.01,94226.0,94203.0,0.04341874]
[1763319429705,0.01924389,94225.0,94205.0,0.04341874]
[1763319430094,0.04949,94251.0,94226.0,0.04341874]
[1763319430309,0.01,94233.0,94227.0,0.02418]
[1763319430482,0.02885502,94250.0,94221.0,0.02418]
[1763319430483,0.04214,94227.0,94221.0,0.02418]
[1763319430684,0.01923668,94226.0,94221.0,0.02418]
[1763319430890,0.01,94228.0,94222.0,0.07254]
[1763319431118,0.06206,94222.0,94203.0,0.001]
[1763319431318,0.01,94204.0,94203.0,0.001]
[1763319431603,0.02923014,94204.0,94203.0,0.001]
[1763319431730,0.02923014,94204.0,94203.0,0.13851]
[1763319431934,0.04589848,94204.0,94203.0,0.06497]
[1763319432244,0.03589848,94204.0,94200.0,0.00048949]
[1763319432446,0.02923014,94203.0,94200.0,0.00048949]
[1763319432646,0.01,94201.0,94200.0,0.00048949]
[1763319432964,0.09577567,94201.0,94200.0,0.00048949]
[1763319433165,0.19013567,94201.0,94200.0,0.00048949]
[1763319433769,0.19113567,94201.0,94200.0,0.00048949]
[1763319434134,0.09777567,94201.0,94200.0,0.00048949]
[1763319434264,0.09830435,94201.0,94200.0,0.00048949]
[1763319434910,0.18764665,94201.0,94200.0,0.00048949]
[1763319435331,0.26352665,94201.0,94200.0,0.00048949]
[1763319435498,0.20046665,94201.0,94200.0,0.00048949]
[1763319435910,0.20146665,94201.0,94200.0,0.00048949]
[1763319436121,0.20046665,94201.0,94200.0,0.00048949]
[1763319436287,0.19946665,94201.0,94200.0,0.00048949]
[1763319436487,0.20448435,94201.0,94200.0,0.00048949]
[1763319437506,0.19090435,94201.0,94200.0,0.00048949]
[1763319437903,0.09935435,94201.0,94200.0,0.00048949]
[1763319438462,0.19385435,94201.0,94200.0,0.00048949]
[1763319438962,0.03022665,94201.0,94200.0,0.00048949]
[1763319439161,0.03122665,94201.0,94200.0,0.00048949]
[1763319439390,0.012,94201.0,94200.0,0.00048949]
[1763319439541,0.002,94201.0,94200.0,0.13562949]
[1763319439752,0.002,94201.0,94200.0,0.06308949]
[1763319439753,0.03017581,94201.0,94200.0,0.06308949]
[1763319439943,0.02917581,94201.0,94200.0,0.06308949]
[1763319440142,0.01,94202.0,94200.0,0.06308949]
[1763319441596,0.01,94202.0,94201.0,0.0626]
[1763319441936,0.02919183,94202.0,94201.0,0.0626]
[1763319442341,0.02919183,94202.0,94200.0,0.00048949]
[1763319442545,0.01,94201.0,94200.0,0.00048949]
[1763319443477,0.02919261,94201.0,94200.0,0.06308949]
[1763319444751,0.01919261,94201.0,94200.0,0.17904823]
[1763319444951,0.01666834,94204.0,94201.0,0.04341874]
[1763319445154,0.01666834,94204.0,94203.0,0.10601874]
[1763319445155,0.02666834,94204.0,94203.0,0.10601874]
[1763319445385,0.18032,94204.0,94203.0,0.10601874]
[1763319445759,0.09516,94204.0,94203.0,0.10601874]
[1763319445886,0.01,94204.0,94203.0,0.10601874]
[1763319446840,0.01,94204.0,94200.0,0.00048949]
[1763319446998,0.01,94202.0,94200.0,0.04390823]
[1763319447420,0.01,94202.0,94201.0,0.0626]
[1763319448675,0.02666781,94202.0,94201.0,0.0626]
[1763319449164,0.02666781,94202.0,94201.0,0.13514]
[1763319449357,0.01666781,94202.0,94201.0,0.15545682]
[1763319449559,0.01666781,94202.0,94201.0,0.19887556]
[1763319450737,0.00112428,94220.0,94201.0,0.19887556]
[1763319450738,0.00112428,94220.0,94202.0,0.04341874]
[1763319450935,0.04598,94240.0,94219.0,0.13019874]
[1763319451157,0.02174871,94247.0,94220.0,0.11595874]
[1763319451158,0.01666592,94221.0,94220.0,0.11595874]
[1763319451376,0.01,94232.0,94221.0,0.04341874]
[1763319451576,0.2,94260.0,94220.0,0.04341874]
[1763319451577,0.01666553,94221.0,94220.0,0.04341874]
[1763319452058,0.01,94223.0,94220.0,0.17855874]
[1763319452390,0.01,94223.0,94222.0,0.10601874]
[1763319452561,0.02929405,94223.0,94222.0,0.10601874]
[1763319452793,0.02929405,94223.0,94222.0,0.17855874]
[1763319453154,0.01,94223.0,94222.0,0.17855874]
[1763319453537,0.02930229,94223.0,94222.0,0.17855874]
[1763319454144,0.01,94223.0,94222.0,0.17855874]
[1763319454366,0.02931287,94223.0,94222.0,0.17855874]
[1763319454771,0.04597835,94223.0,94222.0,0.17855874]
[1763319455104,0.02666548,94223.0,94222.0,0.17855874]
[1763319455312,0.19690548,94223.0,94222.0,0.17855874]
[1763319455542,0.2161942,94223.0,94222.0,0.17855874]
[1763319455744,0.13107409,94223.0,94222.0,0.17855874]
[1763319455953,0.13107374,94223.0,94222.0,0.17855874]
[1763319456170,0.11178548,94223.0,94222.0,0.17855874]
[1763319456806,0.11178548,94223.0,94219.0,0.02418]
[1763319456807,0.01666548,94223.0,94219.0,0.02418]
[1763319456999,0.01,94220.0,94219.0,0.02418]
[1763319457421,0.02931279,94220.0,94219.0,0.02418]
[1763319458291,0.02931279,94220.0,94210.0,0.02418]
[1763319458292,0.08562707,94220.0,94210.0,0.02418]
[1763319458511,0.01,94211.0,94210.0,0.02418]
[1763319458918,0.01,94211.0,94210.0,0.08678]
[1763319459792,0.01,94211.0,94210.0,0.02418]
[1763319460221,0.01,94211.0,94210.0,0.08678]
[1763319460443,0.01,94211.0,94210.0,0.02418]
[1763319460875,0.01,94211.0,94210.0,0.08678]
[1763319461655,0.01,94211.0,94210.0,0.15932]
[1763319462921,0.01,94217.0,94210.0,0.175252]
[1763319463160,0.01933291,94216.0,94211.0,0.07254]
[1763319463383,0.01,94217.0,94212.0,0.04341874]
[1763319463589,0.01,94217.0,94216.0,0.0626]
[1763319464008,0.01,94217.0,94216.0,0.13514]
[1763319464217,0.02666701,94217.0,94216.0,0.0626]
[1763319464428,0.04600035,94217.0,94216.0,0.0626]
[1763319465072,0.01,94217.0,94216.0,0.13514]
[1763319465704,0.0293347,94217.0,94216.0,0.15541387]
[1763319465956,0.02666548,94223.0,94217.0,0.04341874]
[1763319466158,0.02666548,94223.0,94222.0,0.05777]
[1763319466612,0.02666548,94223.0,94222.0,0.13031]
[1763319466844,0.01666548,94223.0,94222.0,0.13031]
[1763319467695,0.03333167,94223.0,94222.0,0.13031]
[1763319467900,0.03333167,94223.0,94222.0,0.17372874]
[1763319475411,0.20357167,94223.0,94222.0,0.17372874]
[1763319477144,0.11845167,94223.0,94222.0,0.17372874]
[1763319479893,0.11845167,94223.0,94222.0,0.17376874]
[1763319480765,0.11845167,94223.0,94222.0,4e-05]
[1763319482165,0.03333167,94223.0,94222.0,4e-05]
[1763319482573,0.02219798,94252.0,94222.0,4e-05]
[1763319482769,0.04761,94271.0,94222.0,4e-05]
[1763319482770,0.00112428,94240.0,94222.0,4e-05]
[1763319482976,0.01666425,94228.0,94222.0,4e-05]
[1763319483331,0.00112428,94240.0,94222.0,4e-05]
[1763319483562,0.47408077,94280.0,94222.0,4e-05]
[1763319483563,0.05556057,94269.0,94225.0,0.04341874]
[1763319483764,0.00112428,94250.0,94227.0,0.04341874]
[1763319483971,0.0193329,94249.0,94227.0,0.04341874]
[1763319484193,0.00112428,94250.0,94227.0,0.04341874]
[1763319484604,0.12199798,94276.0,94227.0,0.04341874]
[1763319484805,0.00112428,94250.0,94229.0,0.04341874]
[1763319485239,0.02219798,94276.0,94229.0,0.04341874]
[1763319485498,0.17024,94249.0,94229.0,0.04341874]
[1763319485699,0.17024,94249.0,94243.0,0.04341874]
[1763319486162,0.17024,94249.0,94240.0,0.04341874]
[1763319486365,0.01666205,94245.0,94240.0,0.04341874]
[1763319486803,0.01666205,94245.0,94240.0,0.05779436]
[1763319487228,0.01666205,94245.0,94243.0,0.001]
[1763319488724,0.01666205,94245.0,94240.0,0.04445874]
[1763319489381,0.01666205,94245.0,94240.0,0.04545874]
[1763319490076,0.01666205,94245.0,94240.0,0.04645874]
[1763319490311,0.01666205,94245.0,94241.0,0.10033745]
[1763319490523,0.01666205,94245.0,94242.0,0.05809836]
[1763319491968,0.01666205,94245.0,94242.0,0.05813836]
[1763319492517,0.01666205,94245.0,94242.0,0.05913836]
[1763319492723,0.01666205,94245.0,94242.0,0.05917836]
[1763319492931,0.01666205,94245.0,94242.0,0.05817836]
[1763319493146,0.01666205,94245.0,94242.0,0.04549874]
[1763319493356,0.01666205,94245.0,94242.0,0.04749874]
[1763319495007,0.01666205,94245.0,94242.0,0.04549874]
[1763319495411,0.08508,94244.0,94242.0,8e-05]
[1763319495731,0.01666205,94245.0,94242.0,0.00208]
[1763319496141,0.01,94243.0,94242.0,0.00108]
[1763319496335,0.01,94243.0,94242.0,0.04449874]
[1763319496474,0.01,94243.0,94242.0,0.04349874]
[1763319496677,0.01,94243.0,94242.0,0.04449874]
[1763319496935,0.01458944,94243.0,94242.0,0.04549874]
[1763319497130,0.01,94243.0,94242.0,0.04549874]
[1763319497744,0.01,94243.0,94242.0,0.04449874]
[1763319497949,0.01,94246.0,94243.0,0.04341874]
[1763319498164,0.01,94246.0,94242.0,0.00308]
[1763319498792,0.01,94246.0,94242.0,0.00208]
[1763319499202,0.01,94246.0,94244.0,0.04341874]
[1763319499617,0.01,94246.0,94243.0,0.04341874]
[1763319499828,0.01,94246.0,94242.0,0.00108]
[1763319500467,0.02666243,94246.0,94242.0,8e-05]
[1763319500880,0.02666243,94246.0,94242.0,0.00108]
[1763319501283,0.02666243,94246.0,94244.0,0.001]
[1763319501525,0.01666243,94246.0,94244.0,0.001]
[1763319502211,0.07439,94245.0,94244.0,0.001]
[1763319502426,0.01,94243.0,94242.0,8e-05]
[1763319502655,0.07439,94243.0,94242.0,0.00108]
[1763319502851,0.12373,94243.0,94242.0,0.00108]
[1763319503464,0.12373,94243.0,94242.0,8e-05]
[1763319503605,0.05934,94243.0,94242.0,8e-05]
[1763319503802,0.05934,94243.0,94242.0,0.00108]
[1763319504849,0.01666243,94246.0,94242.0,0.00108]
[1763319505189,0.01666243,94246.0,94243.0,0.04341874]
[1763319505391,0.17016,94245.0,94243.0,0.04341874]
[1763319505731,0.01666243,94246.0,94243.0,0.04341874]
[1763319506147,0.01666243,94246.0,94242.0,8e-05]
[1763319506381,0.01666243,94246.0,94243.0,0.04341874]
[1763319506583,0.01,94244.0,94243.0,0.001]
[1763319506794,0.16999,94244.0,94243.0,0.001]
[1763319507209,0.17933202,94244.0,94242.0,0.00108]
[1763319507411,0.18933202,94243.0,94242.0,8e-05]
[1763319507821,0.18933202,94243.0,94242.0,0.00108]
[1763319508240,0.1939763,94243.0,94242.0,0.00108]
[1763319508650,0.1939763,94243.0,94242.0,8e-05]
[1763319509466,0.19472265,94243.0,94242.0,8e-05]
[1763319510504,0.21138767,94243.0,94242.0,8e-05]
[1763319510679,0.19472265,94243.0,94242.0,8e-05]
[1763319511669,0.18933202,94243.0,94242.0,8e-05]
[1763319512084,0.18472265,94243.0,94242.0,8e-05]
[1763319512299,0.20439611,94243.0,94242.0,8e-05]
[1763319512505,0.22655755,94243.0,94242.0,8e-05]
[1763319513760,0.24322316,94243.0,94242.0,8e-05]
[1763319514352,0.24363036,94243.0,94242.0,8e-05]
[1763319514502,0.26029566,94243.0,94242.0,8e-05]
[1763319515291,0.43053566,94243.0,94242.0,8e-05]
[1763319515490,0.4208622,94243.0,94242.0,8e-05]
[1763319515688,0.3357422,94243.0,94242.0,8e-05]
[1763319515895,0.32994437,94243.0,94242.0,8e-05]
[1763319516297,0.14922437,94243.0,94242.0,8e-05]
[1763319516532,0.12706293,94243.0,94242.0,8e-05]
[1763319516726,0.06267293,94243.0,94242.0,8e-05]
[1763319517144,0.05267293,94243.0,94242.0,8e-05]
[1763319517474,0.03333091,94243.0,94242.0,8e-05]
[1763319517878,0.0166653,94243.0,94242.0,8e-05]
[1763319518080,0.1866553,94243.0,94242.0,8e-05]
[1763319518283,0.20599673,94243.0,94242.0,8e-05]
[1763319519362,0.22807143,94243.0,94242.0,8e-05]
[1763319520362,0.22807712,94243.0,94242.0,8e-05]
[1763319521119,0.24474184,94243.0,94242.0,8e-05]
[1763319521528,0.07475184,94243.0,94242.0,8e-05]
[1763319521766,0.03333002,94243.0,94242.0,8e-05]
[1763319522242,0.0166653,94243.0,94242.0,8e-05]
[1763319524131,0.01112428,94250.0,94242.0,8e-05]
[1763319524337,0.0193722,94249.0,94242.0,8e-05]
[1763319524582,0.0193722,94248.0,94242.0,8e-05]
[1763319524809,0.07439,94243.0,94242.0,8e-05]
[1763319525530,0.24463,94243.0,94242.0,8e-05]
[1763319526258,0.16559526,94243.0,94242.0,8e-05]
[1763319527013,0.09984131,94243.0,94242.0,8e-05]
[1763319527214,0.08047526,94243.0,94242.0,8e-05]
[1763319527393,0.09983793,94243.0,94242.0,8e-05]
[1763319527596,0.08047526,94243.0,94242.0,8e-05]
[1763319528019,0.19405949,94243.0,94242.0,8e-05]
[1763319529231,0.09983949,94243.0,94242.0,8e-05]
[1763319529844,0.03544949,94243.0,94242.0,8e-05]
[1763319530406,0.01936423,94243.0,94242.0,8e-05]
[1763319530558,0.01666397,94247.0,94242.0,8e-05]
[1763319530917,0.0193941,94246.0,94242.0,8e-05]
[1763319531117,0.01666397,94247.0,94242.0,8e-05]
[1763319531352,0.01939314,94246.0,94242.0,8e-05]
[1763319531555,0.01666397,94247.0,94242.0,8e-05]
[1763319531762,0.01939634,94246.0,94242.0,8e-05]
[1763319531987,0.01666397,94247.0,94242.0,8e-05]
[1763319532209,0.06045,94243.0,94242.0,8e-05]
[1763319532415,0.08985361,94243.0,94242.0,8e-05]
[1763319532629,0.18407361,94243.0,94242.0,8e-05]
[1763319532759,0.1937749,94243.0,94242.0,8e-05]
[1763319534241,0.0391049,94243.0,94242.0,8e-05]
[1763319534421,0.02940361,94243.0,94242.0,8e-05]
[1763319535035,0.08985361,94243.0,94242.0,8e-05]
[1763319535434,0.26009361,94243.0,94242.0,8e-05]
[1763319535632,0.28220418,94243.0,94242.0,8e-05]
[1763319538172,0.28220987,94243.0,94242.0,8e-05]
[1763319538394,0.22175987,94243.0,94242.0,8e-05]
[1763319540288,0.05151987,94243.0,94242.0,8e-05]
[1763319540490,0.0194093,94243.0,94242.0,8e-05]
[1763319540718,0.01939438,94243.0,94242.0,8e-05]
[1763319541899,0.00112428,94250.0,94242.0,8e-05]
[1763319542129,0.01,94248.0,94242.0,8e-05]
[1763319542259,0.01940808,94247.0,94242.0,8e-05]